[Event "Live Chess"]
[Site "Chess.com"]
[Date "2024.06.01"]
[Round "-"]
[White "OurKnightAtTheOpera"]
[Black "RamsayFlayer"]
[Result "1-0"]
[WhiteElo "2030"]
[BlackElo "1953"]
[TimeControl "300"]
[EndTime "11:31:47 PDT"]
[Termination "OurKnightAtTheOpera won by checkmate"]

1. e4 {[%clk 0:04:59.9]} 1... e5 {[%clk 0:04:58.8]} 2. Bc4 {[%clk 0:04:58.9]}
2... Nf6 {[%clk 0:04:57.3]} 3. d3 {[%clk 0:04:58.4]} 3... Bc5 {[%clk 0:04:55.9]}
4. Nf3 {[%clk 0:04:57.9]} 4... Nc6 {[%clk 0:04:53.5]} 5. O-O {[%clk 0:04:57]}
5... d6 {[%clk 0:04:52.8]} 6. c3 {[%clk 0:04:55.8]} 6... Be6 {[%clk 0:04:51.4]}
7. Nbd2 {[%clk 0:04:54.3]} 7... Bxc4 {[%clk 0:04:49.4]} 8. Nxc4 {[%clk
0:04:53.4]} 8... h6 {[%clk 0:04:46.6]} 9. Be3 {[%clk 0:04:48.5]} 9... Nd7 {[%clk
0:04:40.9]} 10. Bxc5 {[%clk 0:04:42.4]} 10... Nxc5 {[%clk 0:04:39.1]} 11. b4
{[%clk 0:04:41.9]} 11... Ne6 {[%clk 0:04:36.6]} 12. d4 {[%clk 0:04:33.9]} 12...
exd4 {[%clk 0:04:31.3]} 13. cxd4 {[%clk 0:04:33.2]} 13... Ne7 {[%clk 0:04:24.3]}
14. d5 {[%clk 0:04:27]} 14... Nf4 {[%clk 0:04:22.3]} 15. Re1 {[%clk 0:04:14.7]}
15... O-O {[%clk 0:04:17.2]} 16. Qd2 {[%clk 0:04:09.1]} 16... Nfg6 {[%clk
0:04:14.9]} 17. a3 {[%clk 0:04:06.5]} 17... f5 {[%clk 0:03:59]} 18. Nd4 {[%clk
0:03:54.1]} 18... fxe4 {[%clk 0:03:56.2]} 19. Ne6 {[%clk 0:03:53.3]} 19... Qe8
{[%clk 0:03:50.9]} 20. Nxf8 {[%clk 0:03:50.4]} 20... Qxf8 {[%clk 0:03:49.7]} 21.
Rxe4 {[%clk 0:03:49.6]} 21... Qf5 {[%clk 0:03:37.9]} 22. Rd4 {[%clk 0:03:36.4]}
22... Rf8 {[%clk 0:03:33.3]} 23. Re1 {[%clk 0:03:29.5]} 23... Rf7 {[%clk
0:03:05.3]} 24. Ne3 {[%clk 0:03:23.7]} 24... Qh5 {[%clk 0:02:49.5]} 25. Qc2
{[%clk 0:03:14.1]} 25... Nf4 {[%clk 0:02:38.6]} 26. Rd2 {[%clk 0:02:44.2]} 26...
Nexd5 {[%clk 0:02:23.8]} 27. Nxd5 {[%clk 0:02:42.4]} 27... Nxd5 {[%clk
0:02:20.9]} 28. Qc4 {[%clk 0:02:23.2]} 28... c6 {[%clk 0:02:07.2]} 29. b5 {[%clk
0:02:01.5]} 29... Qg5 {[%clk 0:01:56.5]} 30. Rde2 {[%clk 0:01:33.1]} 30... Nf4
{[%clk 0:01:22.9]} 31. Re8+ {[%clk 0:01:29.9]} 31... Kh7 {[%clk 0:01:21.1]} 32.
Qe4+ {[%clk 0:01:28.8]} 32... g6 {[%clk 0:01:09.7]} 33. Kh1 {[%clk 0:01:09.2]}
33... d5 {[%clk 0:00:59.3]} 34. Qf3 {[%clk 0:01:07.9]} 34... Kg7 {[%clk
0:00:47.8]} 35. Qc3+ {[%clk 0:00:54.9]} 35... Qf6 {[%clk 0:00:35.7]} 36. Qxf6+
{[%clk 0:00:51.3]} 36... Kxf6 {[%clk 0:00:35.1]} 37. bxc6 {[%clk 0:00:43.5]}
37... bxc6 {[%clk 0:00:31.7]} 38. g3 {[%clk 0:00:42.7]} 38... Nd3 {[%clk
0:00:27.5]} 39. R1e6+ {[%clk 0:00:42.2]} 39... Kg5 {[%clk 0:00:25.2]} 40. Rxc6
{[%clk 0:00:41.8]} 40... Rxf2 {[%clk 0:00:18.4]} 41. Rc3 {[%clk 0:00:34.7]}
41... Nb2 {[%clk 0:00:15.2]} 42. Kg1 {[%clk 0:00:29.5]} 42... Rd2 {[%clk
0:00:14.1]} 43. Rf3 {[%clk 0:00:27]} 43... d4 {[%clk 0:00:13.2]} 44. Re5+ {[%clk
0:00:25.4]} 44... Kg4 {[%clk 0:00:12.6]} 45. Rf4+ {[%clk 0:00:23.3]} 45... Kh3
{[%clk 0:00:11.2]} 46. Rh4# {[%clk 0:00:23.2]} 1-0

[Event "Live Chess"]
[Site "Chess.com"]
[Date "2024.06.01"]
[Round "-"]
[White "OliWally08"]
[Black "Yarigo"]
[Result "0-1"]
[WhiteElo "1274"]
[BlackElo "2335"]
[TimeControl "300"]
[EndTime "11:32:04 PDT"]
[Termination "Yarigo won by resignation"]

1. e4 {[%clk 0:04:59.4]} 1... c6 {[%clk 0:04:57]} 2. Nc3 {[%clk 0:04:57]} 2...
d5 {[%clk 0:04:56.3]} 3. Nf3 {[%clk 0:04:55.3]} 3... dxe4 {[%clk 0:04:54.6]} 4.
Nxe4 {[%clk 0:04:51.6]} 4... Nf6 {[%clk 0:04:54.1]} 5. Qe2 {[%clk 0:04:49.9]}
5... Nxe4 {[%clk 0:04:50.6]} 6. Qxe4 {[%clk 0:04:49]} 6... Nd7 {[%clk
0:04:48.3]} 7. Bc4 {[%clk 0:04:39.3]} 7... Nf6 {[%clk 0:04:45.1]} 8. Ne5 {[%clk
0:04:24.2]} 8... e6 {[%clk 0:04:42.5]} 9. Qe3 {[%clk 0:03:58.4]} 9... Bd6 {[%clk
0:04:40.1]} 10. O-O {[%clk 0:03:55.7]} 10... O-O {[%clk 0:04:37.9]} 11. b3
{[%clk 0:03:52.8]} 11... Qc7 {[%clk 0:04:31.2]} 12. Bb2 {[%clk 0:03:51.1]} 12...
b5 {[%clk 0:04:26.2]} 13. Bd3 {[%clk 0:03:27]} 13... Bb7 {[%clk 0:04:16.7]} 14.
Rae1 {[%clk 0:03:15.3]} 14... Rfe8 {[%clk 0:03:54]} 15. f4 {[%clk 0:03:13.2]}
15... Nd7 {[%clk 0:03:24.7]} 16. Qh3 {[%clk 0:03:04.3]} 16... f5 {[%clk
0:03:16.5]} 17. Nxd7 {[%clk 0:02:54]} 17... Qxd7 {[%clk 0:03:13.9]} 18. Kh1
{[%clk 0:02:43.1]} 18... c5 {[%clk 0:03:01.5]} 19. c4 {[%clk 0:02:18.9]} 19...
b4 {[%clk 0:02:51.7]} 20. Be2 {[%clk 0:02:11.1]} 20... Bc7 {[%clk 0:02:44]} 21.
d4 {[%clk 0:02:00.1]} 21... cxd4 {[%clk 0:02:40.7]} 22. Bxd4 {[%clk 0:01:58.2]}
22... Qxd4 {[%clk 0:02:35]} 23. Rd1 {[%clk 0:01:26.5]} 23... Qc5 {[%clk
0:02:27.5]} 24. Qg3 {[%clk 0:01:20.9]} 24... Rad8 {[%clk 0:02:23.8]} 25. Bh5
{[%clk 0:01:16.1]} 25... Rxd1 {[%clk 0:02:18]} 26. Rxd1 {[%clk 0:01:12.8]} 26...
Rd8 {[%clk 0:02:17.2]} 27. Qg5 {[%clk 0:00:53.4]} 27... Rxd1+ {[%clk 0:02:08.9]}
28. Bxd1 {[%clk 0:00:53.3]} 28... Bb6 {[%clk 0:02:07.2]} 0-1

[Event "Live Chess"]
[Site "Chess.com"]
[Date "2024.06.01"]
[Round "-"]
[White "Golden_Plans"]
[Black "CliveFrostick"]
[Result "0-1"]
[WhiteElo "2238"]
[BlackElo "1865"]
[TimeControl "300"]
[EndTime "11:32:07 PDT"]
[Termination "CliveFrostick won by resignation"]

1. e4 {[%clk 0:04:55.2]} 1... c5 {[%clk 0:04:58.2]} 2. Nf3 {[%clk 0:04:53.4]}
2... e6 {[%clk 0:04:57.3]} 3. d4 {[%clk 0:04:50.2]} 3... cxd4 {[%clk 0:04:56.8]}
4. Nxd4 {[%clk 0:04:49.1]} 4... Nf6 {[%clk 0:04:56]} 5. Nc3 {[%clk 0:04:46.7]}
5... Nc6 {[%clk 0:04:55.4]} 6. Ndb5 {[%clk 0:04:42]} 6... Bb4 {[%clk 0:04:52.5]}
7. Nd6+ {[%clk 0:04:40.6]} 7... Ke7 {[%clk 0:04:46.9]} 8. Nxc8+ {[%clk
0:04:37.1]} 8... Rxc8 {[%clk 0:04:46]} 9. Bd3 {[%clk 0:04:35.6]} 9... Ne5 {[%clk
0:04:42.9]} 10. Be3 {[%clk 0:04:29.1]} 10... d5 {[%clk 0:04:32.8]} 11. exd5
{[%clk 0:04:26.8]} 11... Nxd5 {[%clk 0:04:28.6]} 12. Bd2 {[%clk 0:04:19.6]}
12... Nxc3 {[%clk 0:04:27.4]} 13. bxc3 {[%clk 0:04:17.9]} 13... Bxc3 {[%clk
0:04:26]} 14. Bxc3 {[%clk 0:04:17]} 14... Rxc3 {[%clk 0:04:23.9]} 15. Rb1 {[%clk
0:04:13.7]} 15... b6 {[%clk 0:04:21.8]} 16. O-O {[%clk 0:04:10.8]} 16... Nxd3
{[%clk 0:04:19.5]} 17. cxd3 {[%clk 0:04:08.3]} 17... Re8 {[%clk 0:04:09.7]} 18.
Qg4 {[%clk 0:04:03.3]} 18... Kf8 {[%clk 0:04:07]} 19. Qb4+ {[%clk 0:04:00.9]}
19... Rc5 {[%clk 0:04:04]} 20. d4 {[%clk 0:03:59.9]} 20... a5 {[%clk 0:04:03.3]}
21. Qxb6 {[%clk 0:03:50.2]} 21... Qxb6 {[%clk 0:03:52.2]} 22. Rxb6 {[%clk
0:03:48.3]} 22... Rd5 {[%clk 0:03:51.5]} 23. Rd1 {[%clk 0:03:45.3]} 23... Rc8
{[%clk 0:03:49.6]} 24. Rb2 {[%clk 0:03:38.1]} 24... Rc4 {[%clk 0:03:48]} 25.
Rbd2 {[%clk 0:03:36.4]} 25... e5 {[%clk 0:03:46.4]} 26. f3 {[%clk 0:03:32.4]}
26... Rdxd4 {[%clk 0:03:44.8]} 27. Rxd4 {[%clk 0:03:30.5]} 27... exd4 {[%clk
0:03:43.6]} 28. Rd2 {[%clk 0:03:28.2]} 28... a4 {[%clk 0:03:41.2]} 29. Kf2
{[%clk 0:03:27.2]} 29... a3 {[%clk 0:03:39.2]} 30. Ke2 {[%clk 0:03:25.7]} 30...
Ke7 {[%clk 0:03:37.3]} 31. Kd3 {[%clk 0:03:19.5]} 31... Rb4 {[%clk 0:03:35.8]}
32. Ke4 {[%clk 0:03:16.8]} 32... Ke6 {[%clk 0:03:32.1]} 33. g4 {[%clk
0:03:14.5]} 33... Rb2 {[%clk 0:03:29.2]} 34. Rxd4 {[%clk 0:03:11.6]} 34... Rxa2
{[%clk 0:03:27.4]} 35. Ra4 {[%clk 0:03:10.7]} 35... Re2+ {[%clk 0:03:24.5]} 36.
Kd3 {[%clk 0:03:07.4]} 36... Ra2 {[%clk 0:03:13.3]} 37. h4 {[%clk 0:03:03.3]}
37... g6 {[%clk 0:03:10.1]} 38. Ra6+ {[%clk 0:03:01.5]} 38... Ke5 {[%clk
0:03:08.2]} 39. Ke3 {[%clk 0:02:59.6]} 39... f5 {[%clk 0:03:04.1]} 40. f4+
{[%clk 0:02:56.2]} 40... Kd5 {[%clk 0:03:02.7]} 41. gxf5 {[%clk 0:02:52.8]}
41... gxf5 {[%clk 0:03:01.6]} 42. Ra5+ {[%clk 0:02:50.4]} 42... Kc4 {[%clk
0:02:59.4]} 43. Rxf5 {[%clk 0:02:47.4]} 43... Rh2 {[%clk 0:02:55.2]} 44. Ra5
{[%clk 0:02:43.1]} 44... a2 {[%clk 0:02:46.9]} 45. Ke4 {[%clk 0:02:37.8]} 45...
Kb3 {[%clk 0:02:44.5]} 46. Kf5 {[%clk 0:02:27.8]} 46... Rxh4 {[%clk 0:02:43.2]}
47. Kg5 {[%clk 0:02:24.2]} 47... Rh2 {[%clk 0:02:41.9]} 48. Kf6 {[%clk
0:02:12.2]} 48... h5 {[%clk 0:02:39.2]} 49. f5 {[%clk 0:02:08.2]} 49... h4
{[%clk 0:02:38.1]} 50. Kg5 {[%clk 0:02:06.5]} 50... h3 {[%clk 0:02:36.3]} 51. f6
{[%clk 0:02:05.5]} 51... Rf2 {[%clk 0:02:35]} 52. Rb5+ {[%clk 0:02:01.3]} 52...
Kc4 {[%clk 0:02:30.8]} 53. Ra5 {[%clk 0:01:57.6]} 53... h2 {[%clk 0:02:29.7]}
54. Ra4+ {[%clk 0:01:48.3]} 54... Kb3 {[%clk 0:02:27.4]} 0-1

[Event "Live Chess"]
[Site "Chess.com"]
[Date "2024.06.01"]
[Round "-"]
[White "Grace6363"]
[Black "Brooms1989"]
[Result "0-1"]
[WhiteElo "1151"]
[BlackElo "1096"]
[TimeControl "300"]
[EndTime "11:32:10 PDT"]
[Termination "Brooms1989 won by checkmate"]

1. d4 {[%clk 0:04:51.5]} 1... Nf6 {[%clk 0:04:58.4]} 2. c4 {[%clk 0:04:49.4]}
2... g6 {[%clk 0:04:56.1]} 3. Nc3 {[%clk 0:04:47.3]} 3... Bg7 {[%clk 0:04:55.4]}
4. Nf3 {[%clk 0:04:45.9]} 4... O-O {[%clk 0:04:54.5]} 5. Bg5 {[%clk 0:04:45.3]}
5... h6 {[%clk 0:04:52.1]} 6. Bh4 {[%clk 0:04:44]} 6... c6 {[%clk 0:04:46.3]} 7.
e4 {[%clk 0:04:42.9]} 7... d6 {[%clk 0:04:42.6]} 8. Be2 {[%clk 0:04:41.4]} 8...
Nbd7 {[%clk 0:04:40.8]} 9. O-O {[%clk 0:04:40.1]} 9... e5 {[%clk 0:04:39.5]} 10.
d5 {[%clk 0:04:38.7]} 10... a5 {[%clk 0:04:37.3]} 11. dxc6 {[%clk 0:04:35.9]}
11... bxc6 {[%clk 0:04:35.6]} 12. Qa4 {[%clk 0:04:30.9]} 12... Bb7 {[%clk
0:04:26]} 13. Rad1 {[%clk 0:04:21.1]} 13... Nc5 {[%clk 0:04:21.7]} 14. Qa3
{[%clk 0:04:15.5]} 14... Qc7 {[%clk 0:04:18.7]} 15. Bxf6 {[%clk 0:04:10.1]}
15... Bxf6 {[%clk 0:04:16.3]} 16. b4 {[%clk 0:04:06.7]} 16... axb4 {[%clk
0:03:45.7]} 17. Qxb4 {[%clk 0:04:05.4]} 17... Bg7 {[%clk 0:03:36.8]} 18. Nd2
{[%clk 0:04:01.7]} 18... f5 {[%clk 0:03:16]} 19. f3 {[%clk 0:03:55.5]} 19... f4
{[%clk 0:03:12.2]} 20. Nb3 {[%clk 0:03:53.4]} 20... Rad8 {[%clk 0:02:49]} 21.
Nxc5 {[%clk 0:03:51.1]} 21... dxc5 {[%clk 0:02:48.5]} 22. Qxc5 {[%clk
0:03:44.9]} 22... Rxd1 {[%clk 0:02:40.6]} 23. Rxd1 {[%clk 0:03:43.2]} 23... Rd8
{[%clk 0:02:40.1]} 24. Rxd8+ {[%clk 0:03:38.3]} 24... Qxd8 {[%clk 0:02:40]} 25.
g3 {[%clk 0:03:32.4]} 25... g5 {[%clk 0:02:32.9]} 26. Qa7 {[%clk 0:03:24.2]}
26... Bc8 {[%clk 0:02:25]} 27. Na4 {[%clk 0:03:11.1]} 27... Qd2 {[%clk
0:02:15.6]} 28. Qc7 {[%clk 0:03:00.6]} 28... Bh3 {[%clk 0:02:05.2]} 29. Bf1
{[%clk 0:02:43.8]} 29... Qe3+ {[%clk 0:02:02.9]} 30. Kh1 {[%clk 0:02:36.3]}
30... Qxf3+ {[%clk 0:02:01.4]} 31. Kg1 {[%clk 0:02:32.6]} 31... Qxf1# {[%clk
0:01:58.8]} 0-1

[Event "Live Chess"]
[Site "Chess.com"]
[Date "2024.06.01"]
[Round "-"]
[White "updatedopenings2024"]
[Black "koekoekoe"]
[Result "1-0"]
[WhiteElo "1960"]
[BlackElo "2068"]
[TimeControl "300"]
[EndTime "11:32:15 PDT"]
[Termination "updatedopenings2024 won by resignation"]

1. e4 {[%clk 0:04:55.3]} 1... d5 {[%clk 0:04:59.9]} 2. exd5 {[%clk 0:04:54.6]}
2... Qxd5 {[%clk 0:04:59.3]} 3. Nf3 {[%clk 0:04:54.1]} 3... Bg4 {[%clk
0:04:57.3]} 4. Be2 {[%clk 0:04:53.6]} 4... e6 {[%clk 0:04:56.3]} 5. d4 {[%clk
0:04:53.3]} 5... Nf6 {[%clk 0:04:55.5]} 6. c4 {[%clk 0:04:52.9]} 6... Qd8 {[%clk
0:04:53.8]} 7. Nc3 {[%clk 0:04:52.6]} 7... c6 {[%clk 0:04:53.3]} 8. Qb3 {[%clk
0:04:51.3]} 8... Qb6 {[%clk 0:04:52.1]} 9. Bf4 {[%clk 0:04:49.6]} 9... Nbd7
{[%clk 0:04:51.2]} 10. Qc2 {[%clk 0:04:45.5]} 10... Bb4 {[%clk 0:04:49.2]} 11.
O-O {[%clk 0:04:44.2]} 11... O-O {[%clk 0:04:48]} 12. Rad1 {[%clk 0:04:43.1]}
12... Rfd8 {[%clk 0:04:41.1]} 13. a3 {[%clk 0:04:39.9]} 13... Be7 {[%clk
0:04:39.7]} 14. h3 {[%clk 0:04:38.4]} 14... Bh5 {[%clk 0:04:38.6]} 15. c5 {[%clk
0:04:26]} 15... Qa5 {[%clk 0:04:31.8]} 16. b4 {[%clk 0:04:19.5]} 16... Bg6
{[%clk 0:04:16.2]} 17. Qb2 {[%clk 0:04:06.7]} 1-0

[Event "Live Chess"]
[Site "Chess.com"]
[Date "2024.06.01"]
[Round "-"]
[White "dhairyapandyauk"]
[Black "A3ndrey9"]
[Result "0-1"]
[WhiteElo "1673"]
[BlackElo "1283"]
[TimeControl "300"]
[EndTime "11:32:19 PDT"]
[Termination "A3ndrey9 won by checkmate"]

1. e4 {[%clk 0:04:57.7]} 1... c6 {[%clk 0:04:59.9]} 2. d4 {[%clk 0:04:56.7]}
2... d5 {[%clk 0:04:59.8]} 3. exd5 {[%clk 0:04:56.3]} 3... cxd5 {[%clk
0:04:58.4]} 4. Bf4 {[%clk 0:04:55.9]} 4... Bf5 {[%clk 0:04:56.9]} 5. Nc3 {[%clk
0:04:55.3]} 5... Nf6 {[%clk 0:04:55.9]} 6. Bd3 {[%clk 0:04:54.4]} 6... Bxd3
{[%clk 0:04:54.3]} 7. Qxd3 {[%clk 0:04:54]} 7... e6 {[%clk 0:04:53.4]} 8. Nb5
{[%clk 0:04:53.3]} 8... Bd6 {[%clk 0:04:49.3]} 9. Nxd6+ {[%clk 0:04:51.4]} 9...
Ke7 {[%clk 0:04:44.9]} 10. Qa3 {[%clk 0:04:46.8]} 10... Kd7 {[%clk 0:04:31.8]}
11. Nxf7 {[%clk 0:04:41]} 11... Qb6 {[%clk 0:04:23.8]} 12. Ne5+ {[%clk
0:04:36.9]} 12... Ke8 {[%clk 0:04:20]} 13. Qg3 {[%clk 0:04:25.8]} 13... Qxb2
{[%clk 0:04:12.6]} 14. Rd1 {[%clk 0:04:22.5]} 14... Ne4 {[%clk 0:04:00.6]} 15.
Qxg7 {[%clk 0:04:21.1]} 15... Qc3+ {[%clk 0:03:53.6]} 16. Kf1 {[%clk 0:04:19.8]}
16... Qxc2 {[%clk 0:03:33.9]} 17. Rc1 {[%clk 0:04:18.5]} 17... Qxf2# {[%clk
0:03:30.2]} 0-1

[Event "Live Chess"]
[Site "Chess.com"]
[Date "2024.06.01"]
[Round "-"]
[White "Stanbad1"]
[Black "powerchs"]
[Result "1-0"]
[WhiteElo "2687"]
[BlackElo "1250"]
[TimeControl "300"]
[EndTime "11:32:27 PDT"]
[Termination "Stanbad1 won by resignation"]

1. d4 {[%clk 0:04:55.4]} 1... Nf6 {[%clk 0:04:58.1]} 2. c4 {[%clk 0:04:55.3]}
2... d6 {[%clk 0:04:57]} 3. Nc3 {[%clk 0:04:54.9]} 3... g6 {[%clk 0:04:55.9]} 4.
e4 {[%clk 0:04:53.8]} 4... Bg7 {[%clk 0:04:54.9]} 5. Be3 {[%clk 0:04:52.6]} 5...
O-O {[%clk 0:04:53.6]} 6. f3 {[%clk 0:04:52.1]} 6... Nc6 {[%clk 0:04:48.4]} 7.
Qd2 {[%clk 0:04:50.8]} 7... a5 {[%clk 0:04:45.3]} 8. d5 {[%clk 0:04:48.9]} 8...
Nb4 {[%clk 0:04:41.6]} 9. a3 {[%clk 0:04:46.6]} 9... Na6 {[%clk 0:04:40.2]} 10.
Rb1 {[%clk 0:04:45.2]} 10... Nc5 {[%clk 0:04:38.9]} 11. Qf2 {[%clk 0:04:40.1]}
11... Nb3 {[%clk 0:04:36.3]} 12. Bd3 {[%clk 0:04:36.2]} 12... a4 {[%clk
0:04:34.2]} 13. Nge2 {[%clk 0:04:34]} 13... c6 {[%clk 0:04:27.4]} 14. O-O {[%clk
0:04:29.3]} 14... cxd5 {[%clk 0:04:24.2]} 15. cxd5 {[%clk 0:04:27.2]} 15... e5
{[%clk 0:04:21.4]} 16. Bb5 {[%clk 0:04:24]} 16... Bd7 {[%clk 0:04:16.4]} 17. Bd3
{[%clk 0:04:15.1]} 17... Nh5 {[%clk 0:04:03.7]} 18. Nc1 {[%clk 0:04:13.3]} 18...
f5 {[%clk 0:03:58.8]} 19. Nxb3 {[%clk 0:04:10.7]} 19... f4 {[%clk 0:03:57.3]}
20. Bb6 {[%clk 0:04:08.7]} 20... Qc8 {[%clk 0:03:54.3]} 21. Na5 {[%clk 0:04:05]}
1-0

[Event "Live Chess"]
[Site "Chess.com"]
[Date "2024.06.01"]
[Round "-"]
[White "ProfPoisson"]
[Black "gmnorfolk"]
[Result "0-1"]
[WhiteElo "1252"]
[BlackElo "2108"]
[TimeControl "300"]
[EndTime "11:32:30 PDT"]
[Termination "gmnorfolk won by checkmate"]

1. e4 {[%clk 0:04:45.9]} 1... c5 {[%clk 0:04:58.7]} 2. Nc3 {[%clk 0:04:43.9]}
2... Nc6 {[%clk 0:04:57]} 3. f4 {[%clk 0:04:42]} 3... g6 {[%clk 0:04:55.6]} 4.
Nf3 {[%clk 0:04:40.7]} 4... Bg7 {[%clk 0:04:55]} 5. Bb5 {[%clk 0:04:38.8]} 5...
Nd4 {[%clk 0:04:52.8]} 6. O-O {[%clk 0:04:36.2]} 6... Nxb5 {[%clk 0:04:47.7]} 7.
Nxb5 {[%clk 0:04:34.6]} 7... d5 {[%clk 0:04:47.6]} 8. exd5 {[%clk 0:04:23.5]}
8... a6 {[%clk 0:04:45.4]} 9. Nc3 {[%clk 0:04:21.3]} 9... Nf6 {[%clk 0:04:45.3]}
10. d4 {[%clk 0:04:04]} 10... Nxd5 {[%clk 0:04:43.9]} 11. Nxd5 {[%clk
0:03:57.5]} 11... Qxd5 {[%clk 0:04:42.1]} 12. Ne5 {[%clk 0:03:54.1]} 12... cxd4
{[%clk 0:04:36.9]} 13. Re1 {[%clk 0:03:33.4]} 13... O-O {[%clk 0:04:33.1]} 14.
Be3 {[%clk 0:03:30.1]} 14... Rd8 {[%clk 0:04:28.6]} 15. Bf2 {[%clk 0:03:14.6]}
15... Bf5 {[%clk 0:04:25]} 16. g4 {[%clk 0:03:04.4]} 16... Be4 {[%clk 0:04:21]}
17. Qe2 {[%clk 0:02:44.5]} 17... Bh1 {[%clk 0:04:16.4]} 18. Bg3 {[%clk
0:02:21.6]} 18... Bxe5 {[%clk 0:04:15]} 19. fxe5 {[%clk 0:02:18.8]} 19... Bf3
{[%clk 0:04:11]} 20. Qf2 {[%clk 0:02:11.8]} 20... Bxg4 {[%clk 0:04:08.7]} 21.
Qf4 {[%clk 0:01:51.9]} 21... Be6 {[%clk 0:04:01.8]} 22. Rad1 {[%clk 0:01:48.3]}
22... Qxa2 {[%clk 0:03:58.9]} 23. Bh4 {[%clk 0:01:40.2]} 23... Rd7 {[%clk
0:03:50.2]} 24. Rf1 {[%clk 0:01:35.1]} 24... Qxb2 {[%clk 0:03:40.5]} 25. Rxd4
{[%clk 0:01:23.4]} 25... Qxd4+ {[%clk 0:03:38.5]} 26. Qxd4 {[%clk 0:01:05.8]}
26... Rxd4 {[%clk 0:03:38.4]} 27. Bxe7 {[%clk 0:01:03]} 27... Rd7 {[%clk
0:03:11.7]} 28. Bf6 {[%clk 0:01:01.4]} 28... h5 {[%clk 0:03:07.8]} 29. h4 {[%clk
0:00:57.7]} 29... Rc8 {[%clk 0:02:47.6]} 30. Kf2 {[%clk 0:00:50.3]} 30... Rxc2+
{[%clk 0:02:46.2]} 31. Ke3 {[%clk 0:00:50]} 31... Rcd2 {[%clk 0:02:43.3]} 32.
Rc1 {[%clk 0:00:45]} 32... R7d3+ {[%clk 0:02:38.2]} 33. Kf4 {[%clk 0:00:41.4]}
33... Rf2+ {[%clk 0:02:33.3]} 34. Ke4 {[%clk 0:00:39.6]} 34... Bf5# {[%clk
0:02:32.9]} 0-1

[Event "Live Chess"]
[Site "Chess.com"]
[Date "2024.06.01"]
[Round "-"]
[White "MagnersCarlsberg2870"]
[Black "JohanKjeldahl"]
[Result "1-0"]
[WhiteElo "1883"]
[BlackElo "1817"]
[TimeControl "300"]
[EndTime "11:32:32 PDT"]
[Termination "MagnersCarlsberg2870 won by resignation"]

1. d4 {[%clk 0:04:57]} 1... Nf6 {[%clk 0:04:57.6]} 2. Bf4 {[%clk 0:04:54.7]}
2... d6 {[%clk 0:04:56]} 3. Nc3 {[%clk 0:04:51.5]} 3... g6 {[%clk 0:04:55]} 4.
e4 {[%clk 0:04:50.5]} 4... Bg7 {[%clk 0:04:53.8]} 5. Nf3 {[%clk 0:04:48.8]} 5...
O-O {[%clk 0:04:52.4]} 6. Qd2 {[%clk 0:04:47.6]} 6... c6 {[%clk 0:04:50.1]} 7.
Bh6 {[%clk 0:04:45.5]} 7... Nbd7 {[%clk 0:04:46.9]} 8. h4 {[%clk 0:04:44.2]}
8... b5 {[%clk 0:04:38.4]} 9. h5 {[%clk 0:04:43]} 9... b4 {[%clk 0:04:33.9]} 10.
Ne2 {[%clk 0:04:23.6]} 10... Nxe4 {[%clk 0:04:31.3]} 11. Qe3 {[%clk 0:04:18.1]}
11... Ndf6 {[%clk 0:04:25.8]} 12. Bxg7 {[%clk 0:04:15.7]} 12... Kxg7 {[%clk
0:04:19.4]} 13. hxg6 {[%clk 0:04:14.7]} 13... fxg6 {[%clk 0:04:17.1]} 14. Qh6+
{[%clk 0:04:12]} 14... Kf7 {[%clk 0:04:16.1]} 15. Ng5+ {[%clk 0:04:08.8]} 15...
Nxg5 {[%clk 0:04:14]} 16. Qxg5 {[%clk 0:04:07.4]} 16... Bf5 {[%clk 0:04:03.2]}
17. g4 {[%clk 0:04:02.7]} 17... Bxc2 {[%clk 0:04:00.2]} 18. Bg2 {[%clk
0:03:47.2]} 18... Qd7 {[%clk 0:03:57.6]} 19. Rc1 {[%clk 0:03:40.5]} 19... Ba4
{[%clk 0:03:40.7]} 20. b3 {[%clk 0:03:07]} 20... Bb5 {[%clk 0:03:38.6]} 21. Bf3
{[%clk 0:02:59.4]} 21... Rac8 {[%clk 0:03:32]} 22. Qe3 {[%clk 0:02:44.2]} 22...
Qe6 {[%clk 0:03:26.8]} 23. Qxe6+ {[%clk 0:02:41.7]} 23... Kxe6 {[%clk
0:03:25.8]} 24. g5 {[%clk 0:02:40.6]} 24... Bxe2 {[%clk 0:03:09.4]} 25. Kxe2
{[%clk 0:02:39.2]} 25... Nd5 {[%clk 0:03:05.3]} 26. Rxh7 {[%clk 0:02:37.6]}
26... Nc3+ {[%clk 0:02:59.7]} 27. Ke3 {[%clk 0:02:32.6]} 27... Rc7 {[%clk
0:02:32.8]} 28. a3 {[%clk 0:02:28.8]} 28... Nd5+ {[%clk 0:02:28.8]} 29. Bxd5+
{[%clk 0:02:26.5]} 29... Kxd5 {[%clk 0:02:27.6]} 30. axb4 {[%clk 0:02:22.6]}
30... Rf5 {[%clk 0:02:24.2]} 31. f4 {[%clk 0:02:16.6]} 31... Rb7 {[%clk
0:02:20.2]} 32. Rg7 {[%clk 0:02:14.8]} 32... Rxb4 {[%clk 0:02:17.2]} 33. Rc3
{[%clk 0:02:07.8]} 33... Rxd4 {[%clk 0:02:14]} 34. Rxe7 {[%clk 0:02:06.7]} 34...
Rfxf4 {[%clk 0:02:05.5]} 35. Rxa7 {[%clk 0:01:57.7]} 35... Rde4+ {[%clk
0:02:02.4]} 36. Kd2 {[%clk 0:01:55.2]} 36... Rf3 {[%clk 0:02:01.4]} 37. Rxf3
{[%clk 0:01:53.3]} 37... Rd4+ {[%clk 0:01:51.1]} 38. Kc3 {[%clk 0:01:51.1]} 1-0